Cogmind - Beta 15 @@@ ROGUE MODE // 2025.10.07 @ 16:32:49 Player: Tereza Result: Destroyed by Y-64 Sentinel with KE Penetrator Performance ------------- Evolutions (5) 2500 Regions Visited (11) 2200 Robots Destroyed (236) 1180 Value Destroyed (8479) 8479 Prototype IDs (26) 520 Alien Tech Used (0) 0 Bonus (4553) 4553 TOTAL SCORE: 19432 Bonus ------- High Alert Combat Kills 662 Follower Combat Kills 1911 Network Hubs Disabled 200 Registered with UFD 300 Met Optimus in HQ 500 Built Enhanced Grunts 300 A7 Reached Mainframe 300 Met R17 at Cetus 500 Friendly Fire -120 Cogmind --------- Core Integrity 0/1000 Matter 78/300 Energy 100/100 System Corruption 25% Temperature Cool (1) Movement Hovering (60) Location -5/Factory Parts ------- > --- POWER (2) -------- (None) > --- PROPULSION (4) --- Gravmag Array > --- UTILITY (8) ------ Improved Target Analyzer > --- WEAPON (3) ------- (None) > --- INVENTORY (5) ---- Centrium Heavy Treads High-capacity Matter Pod (200) Improved System Shield Improved Remote Datajack Peak State ------------ > --- POWER ------------ Compact Particle Reactor Quantum Reactor > --- PROPULSION ------- Centrium Heavy Treads Centrium Heavy Treads > --- UTILITY ---------- Advanced Heat Sink Advanced Heat Sink Advanced Cooling System Large Storage Unit Enhanced Optical Array Experimental Sensor Array Improved Target Analyzer Advanced Hacking Suite > --- WEAPON ----------- Compact Ion Cannon Advanced Plasma Cannon Heavy Phase Cannon > --- INVENTORY -------- Micro Fission Core Micro Fission Core Centrium Heavy Treads High-capacity Matter Pod Improved Particle Charger Improved System Shield Improved Lightning Gun Advanced Variable Charge Gun Advanced Variable Charge Gun Heavy Plasma Cannon Long-range Missile Launcher Advanced Datajack Improved Remote Datajack [Rating: 122] Favorites ----------- Power Heavy Ion Engine Engine Heavy Ion Engine Power Core Light Nuclear Core Reactor Compact Particle Reactor Propulsion Armored Treads Treads Armored Treads Hover Unit Gravmag Array Utility Large Storage Unit Device Advanced Heat Sink Storage Large Storage Unit Processor Enhanced Optical Array Hackware Advanced Hacking Suite Protection Hardened Medium Armor Plating Weapon Advanced Beam Cannon Energy Gun Thermic Laser Energy Cannon Advanced Beam Cannon Ballistic Gun Light Assault Rifle Launcher Long-range Missile Launcher Special Melee Weapon Advanced Datajack Build | -11 -10 -9 -9 -9 -9 -6 -6 -6 -6 -6 -5 ------- Run | Yrd Mat Mat Sto Rec Scr Fac Ext Cet Arc Hub Fac Slots Evolved 10 | . . 2 . . . 6 . . . . 2 Power 1 | . . . . . . 1 . . . . . Propulsion 2 | . . 1 . . . 1 . . . . . Utility 6 | . . 1 . . . 3 . . . . 2 Weapon 1 | . . . . . . 1 . . . . . Parts Attached 109 | 7 5 27 5 . . 10 12 10 . 2 31 Power 15 | 1 . 2 1 . . 1 3 2 . 1 4 Engine 6 | 1 . 1 1 . . 1 2 . . . . Core 5 | . . 1 . . . . . . . 1 3 Reactor 4 | . . . . . . . 1 2 . . 1 Propulsion 31 | 2 1 13 . . . 3 2 2 . . 8 Treads 30 | 2 1 13 . . . 3 2 2 . . 7 Leg . | . . . . . . . . . . . . Wheel . | . . . . . . . . . . . . Hover 1 | . . . . . . . . . . . 1 Flight . | . . . . . . . . . . . . Utility 36 | 2 2 7 2 . . 4 7 4 . 1 7 Device 24 | 1 . 5 2 . . 2 6 3 . 1 4 Storage 3 | 1 1 . . . . . . . . . 1 Processor 3 | . . . . . . 1 . . . . 2 Hackware 3 | . . . . . . 1 1 1 . . . Protection 3 | . 1 2 . . . . . . . . . Artifact . | . . . . . . . . . . . . Weapon 27 | 2 2 5 2 . . 2 . 2 . . 12 Energy Gun 4 | 1 . . . . . . . . . . 3 Energy Cannon 16 | . . 5 2 . . 2 . 2 . . 5 Ballistic Gun 5 | 1 2 . . . . . . . . . 2 Ballistic Cannon . | . . . . . . . . . . . . Launcher 1 | . . . . . . . . . . . 1 Special Weapon . | . . . . . . . . . . . . Impact Weapon . | . . . . . . . . . . . . Slashing Weapon . | . . . . . . . . . . . . Piercing Weapon . | . . . . . . . . . . . . Special Melee Weapon 1 | . . . . . . . . . . . 1 Unidentified Prototypes 7 | . . 1 2 . . . . 2 . 1 1 Parts Lost 47 | . 1 2 . . . . 4 4 . 1 35 Power 8 | . . . . . . . 2 . . . 6 Propulsion 11 | . 1 1 . . . . . 2 . . 7 Utility 15 | . . 1 . . . . 2 . . 1 11 Weapon 13 | . . . . . . . . 2 . . 11 Highest Loss Streak 17 | . 1 1 . . . . 1 4 . 1 17 To Critical Strikes 5 | . . . . . . . . 4 . . 1 Average Backups 14 | 3 10 14 15 15 15 14 14 13 13 12 14 Power 1 | . 1 1 1 1 1 1 1 1 1 1 1 Propulsion 3 | 1 2 3 5 5 5 3 4 3 3 2 1 Utility 4 | . 2 4 5 5 5 5 5 5 5 4 3 Weapon 3 | . 3 4 3 3 3 3 3 2 3 4 5 Tool/Special . | . . . . . . . . . . . . Unused Backups 41 | . 2 13 2 . 1 3 1 3 2 1 13 Power 5 | . . 1 . . . 1 . 1 . . 2 Propulsion 11 | . 1 6 . . . . . 1 . 1 2 Utility 8 | . . 2 1 . . 1 . 1 1 . 2 Weapon 14 | . 1 4 1 . 1 1 1 . . . 5 Tool/Special 3 | . . . . . . . . . 1 . 2 Average Slot Usage (%) 95 | . 99 99 99 100 100 98 99 93 93 93 83 Engine 7 | . 14 8 11 11 11 6 12 4 . . . Core 1 | . . 2 . . . 5 . . . . 4 Reactor 2 | . . . . . . . . 7 13 13 6 Treads 25 | . 27 32 32 33 33 25 26 20 20 20 12 Device 19 | . 12 15 21 22 22 19 19 20 20 20 20 Storage 8 | . 14 11 11 11 11 6 6 6 6 6 4 Processor 3 | . . . . . . 5 6 6 6 6 9 Hackware 2 | . . . . . . 5 6 6 6 6 4 Energy Cannon 17 | . . 21 22 22 22 19 20 20 20 20 13 Ballistic Gun 2 | . 23 . . . . . . . . . . Peak Build Rating 122 | 7 8 26 29 29 30 62 68 94 95 96 122 Average Rating 53 | 5 7 17 28 29 29 57 61 82 94 95 102 On Entrance 45 | . 7 8 26 29 29 30 62 68 94 95 96 Naked Turns . | . . . . . . . . . . . . Heaviest Build 84 | 14 29 46 40 40 40 56 63 81 81 81 84 Greatest Support 160 | 40 40 60 60 60 60 90 90 120 120 120 160 Greatest Overweight (x) 3 | 3 1 . . . . . . 1 . . . Average Overweight (x) . | . . . . . . . . . . . . Largest Inventory Capacity 20 | 8 15 15 15 15 15 15 15 15 15 15 20 Average Capacity 15 | 7 12 15 15 15 15 15 15 15 15 15 16 Most Carried 20 | 6 15 15 15 15 15 15 15 15 15 15 20 Average Carried 14 | 3 11 14 15 15 14 14 14 14 15 14 15 Final Capacity 15 | 8 15 15 15 15 15 15 15 15 15 15 5 Final Carried 15 | 4 15 15 15 15 15 15 15 15 15 15 5 Class Distribution -------------------- 29% | Scavenger-Tank 24% | Mutant 18% | Commander-Mutant 10% | Commander-Tank 6% | Scavenger-Mutant 6% | Skirmisher Dominant Class ---------------- Mutant | -10/Materials Mutant | -9/Materials Mutant | -9/Storage Commander-Mutant | -9/Recycling Commander-Mutant | -9/Scraptown Skirmisher | -6/Factory Scavenger-Tank | -6/Extension Commander-Tank | -6/Cetus Commander-Tank | -6/Archives Scavenger-Tank | -6/Hub_04(d) Scavenger-Tank | -5/Factory Resources | -11 -10 -9 -9 -9 -9 -6 -6 -6 -6 -6 -5 ----------- Run | Yrd Mat Mat Sto Rec Scr Fac Ext Cet Arc Hub Fac Matter Collected 2031 | 286 386 322 100 7 . 120 125 80 10 30 565 Remotely . | . . . . . . . . . . . . Salvage Created 11126 | 98 570 1833 1595 92 . 738 1754 257 351 670 3168 Parts 532 | 11 40 113 90 5 . 24 79 11 23 28 108 Haulers Intercepted 19 | . 2 6 6 . . 2 . . . 1 2 Recyclers Shooed 9 | 2 . 1 4 . . . . . . . 2 Parts Field Recycled . | . . . . . . . . . . . . Retrieved Matter . | . . . . . . . . . . . . Parts Self-Destructed . | . . . . . . . . . . . . Prevented . | . . . . . . . . . . . . Kills | -11 -10 -9 -9 -9 -9 -6 -6 -6 -6 -6 -5 ------- Run | Yrd Mat Mat Sto Rec Scr Fac Ext Cet Arc Hub Fac Combat Hostiles Destroyed 151 | . 12 30 21 1 . 8 22 3 2 7 45 Guns 17 | . 12 . . . . . . . . . 5 Cannons 117 | . . 28 20 1 . 6 21 2 1 6 32 AOE 5 | . . . . . . . . . . . 5 Classes Destroyed 16 | 1 5 5 . . . 1 2 1 . . 1 Worker 13 | . . 2 1 . . 1 2 . . 2 5 Builder 8 | . 1 1 . . . . 1 . . 1 4 Tunneler 5 | 5 . . . . . . . . . . . Hauler 19 | . 2 6 6 . . 2 . . . 1 2 Recycler 10 | . . 2 3 . . . 1 . . . 4 Operator 13 | . . 4 2 . . 1 . . 4 . 2 Watcher 11 | . 2 3 . . . . 2 . . . 4 Swarmer 18 | . 3 7 . . . . . . . . 8 Grunt 63 | . 9 12 11 1 . 4 9 . . 4 13 Brawler 2 | . . . . . . . 1 . . . 1 Duelist 2 | . . 1 . . . . 1 . . . . Sentry 39 | . . 10 11 1 . 2 9 . 2 1 3 Hunter 6 | . . . . . . . . . . 2 4 Programmer 18 | . . . . . . 2 1 . . . 15 Heavy 1 | . . . . . . . . . . . 1 Behemoth 1 | . . . . . . . 1 . . . . Cetus Guard 3 | . . . . . . . . 3 . . . Enhanced Grunt 1 | . . . . . . . . . . 1 . Savage 2 | . . . . . . . 1 . 1 . . Guerrilla 1 | . . . . . . . . 1 . . . Best Kill Streak 7 | 3 4 4 6 1 . 4 5 2 2 3 7 Combat Bots Only 5 | . 4 3 3 1 . 3 4 2 2 2 5 Max Kills in Single Turn 3 | 1 1 1 2 2 . 2 2 1 1 2 3 Gunslinging . | . . . . . . . . . . . . Exploded 2 | . . . . . . . . . . . 2 Melee . | . . . . . . . . . . . . Uniques/NPCs Destroyed . | . . . . . . . . . . . . Combat | -11 -10 -9 -9 -9 -9 -6 -6 -6 -6 -6 -5 -------- Run | Yrd Mat Mat Sto Rec Scr Fac Ext Cet Arc Hub Fac Hostile Shots Fired 1184 | . 64 100 71 11 . 68 244 26 2 103 495 Missed 332 | . 10 33 19 1 . 23 76 10 1 46 113 Hits 852 | . 54 67 52 10 . 45 168 16 1 57 382 Melee 3 | . . 2 . . . . . . . . 1 Projectile 849 | . 54 65 52 10 . 45 168 16 1 57 381 AOE 3 | . . . . . . . 2 . . . 1 Critical Strikes 29 | . 1 2 1 . . . 2 8 . . 15 Part Disruptions 1 | . . . . . . . . . . . 1 Damage Taken 12911 | . 641 914 555 107 . 300 1321 320 34 803 7916 Core 1689 | . 162 133 101 . . 18 108 21 . 126 1020 Absorbed by Shields 1297 | . . . 139 41 . 131 535 117 13 140 181 Reduced by Siege Mode 94 | . . . . . . . . . . . 94 Redirected to Shielding 8 | . 8 . . . . . . . . . . Regen/Repaired (Parts) 833 | . . . 185 . . . . . . . 648 Core Remaining (%) 60 | 100 35 . . . 41 . . . . 67 . Volleys Fired 566 | 16 64 106 71 3 . 27 61 13 17 26 162 Largest 3 | 2 2 2 2 2 . 3 3 3 3 3 3 Hottest 278 | 70 70 136 158 158 . 226 243 265 265 265 278 Shots Fired 1368 | 32 128 212 143 6 . 81 177 39 51 79 420 Gun 255 | 32 128 . . . . . . . . . 95 Cannon 1104 | . . 212 143 6 . 81 177 39 51 79 316 Launcher 9 | . . . . . . . . . . . 9 Special . | . . . . . . . . . . . . Kinetic 141 | 16 96 . . . . . . . . . 29 Thermal 1216 | 16 32 212 143 6 . 81 177 39 51 79 380 Explosive 9 | . . . . . . . . . . . 9 Electromagnetic 2 | . . . . . . . . . . . 2 Robot Hit Streak 14 | 8 9 13 14 6 . 8 14 6 4 13 14 Robot Miss Streak 7 | 2 3 5 3 1 . 3 5 3 7 3 6 Penetration Max 1 | . . . . . . . . . . . 1 Secondary Targets 3 | . 3 . . . . . . . . . . Max Gunslinging Chain 1 | . 1 . . . . . . . . . . Shots Hit Robots 834 | 23 91 139 94 4 . 45 121 25 25 48 219 Core Hits 356 | 7 39 48 35 3 . 18 51 11 15 18 111 Critical Kills 10 | . 1 1 1 . . 2 1 . 1 1 2 Critical Parts Destroyed 1 | . . . . . . . . . . . 1 Critical Strikes 25 | 1 5 1 1 . . 2 1 . 1 1 12 Burn 14 | 1 4 . . . . . . . . . 9 Meltdown 9 | . . 1 1 . . 2 1 . 1 1 2 Destroy 2 | . 1 . . . . . . . . . 1 Melee Attacks . | . . . . . . . . . . . . Impact . | . . . . . . . . . . . . Slashing . | . . . . . . . . . . . . Piercing . | . . . . . . . . . . . . Sneak Attacks . | . . . . . . . . . . . . Combat Hostiles . | . . . . . . . . . . . . Follow-up Attacks . | . . . . . . . . . . . . Damage Inflicted 24477 | 249 820 2970 2383 188 . 1111 3685 751 891 1928 9501 Guns 2476 | 249 819 . . . . . . . . . 1408 Cannons 19700 | . . 2912 2356 156 . 1102 3646 751 891 1785 6101 Explosions 1984 | . . . . . . . . . . 143 1841 Melee . | . . . . . . . . . . . . Ramming 317 | . 1 58 27 32 . 9 39 . . . 151 Kinetic 1295 | 88 541 . . . . . . . . . 666 Thermal 20991 | 161 278 2912 2356 156 . 1102 3646 751 891 1785 6953 Explosive 1685 | . . . . . . . . . . . 1685 Electromagnetic 189 | . . . . . . . . . . 143 46 Impact . | . . . . . . . . . . . . Slashing . | . . . . . . . . . . . . Piercing . | . . . . . . . . . . . . Highest Corruption 25 | . 1 . 1 1 . . . . . 1 25 Average Corruption 5 | . 1 . 1 1 . . . . . 1 10 Corruption Purged . | . . . . . . . . . . . . Corruption Blocked . | . . . . . . . . . . . . Effects 140 | . 7 . 5 6 . . . . . 3 119 Message Errors 28 | . 3 . 2 3 . . . . . . 20 Matter Fused 33 | . 3 . . 1 . . . . . 1 28 Heat Flow Errors 19 | . . . . . . . . . . . 19 Energy Discharges 19 | . 1 . 1 1 . . . . . 1 15 Data Loss (minor) 11 | . . . . . . . . . . . 11 Data Loss (major) 5 | . . . 1 1 . . . . . . 3 Misfires 2 | . . . 1 . . . . . . 1 . Alerts 3 | . . . . . . . . . . . 3 Misdirections 2 | . . . . . . . . . . . 2 Weapon Failures 18 | . . . . . . . . . . . 18 Overload Shots . | . . . . . . . . . . . . Overflow Damage 489 | . . 55 61 . . 15 32 . . 19 307 Projectiles 417 | . . 55 61 . . 15 32 . . 19 235 Explosions 63 | . . . . . . . . . . . 63 Melee 9 | . . . . . . . . . . . 9 Knockbacks 1 | . . . . . . . . . . . 1 Impact 1 | . . . . . . . . . . . 1 Kinetic . | . . . . . . . . . . . . Secondary . | . . . . . . . . . . . . Self-Inflicted Damage 274 | . . . . . . . . . . 102 172 Shots 4 | . . . . . . . . . . 1 3 Rammed 29 | . 1 7 4 2 . 1 5 . . . 9 Targets Rammed 35 | . 1 9 5 2 . 1 5 . . . 12 Kicked . | . . . . . . . . . . . . Crushed 6 | . . 2 1 . . . . . . . 3 Highest Temperature 408 | 150 213 408 321 36 . 372 378 313 180 352 310 Average Temperature 92 | 54 82 101 45 22 . 120 128 163 64 122 68 Received Heat Transfer 1882 | . 318 315 224 24 . 78 384 . . 104 435 Effects 9 | . . 4 . . . 1 3 . . . 1 Energy Bleed 4 | . . 1 . . . 1 1 . . . 1 Interference 3 | . . 1 . . . . 2 . . . . Matter Decay 1 | . . 1 . . . . . . . . . Short Circuit 1 | . . 1 . . . . . . . . . Siege Activations 3 | . . . . . . . . . . . 3 Total Turns 30 | . . . . . . . . . . . 30 Longest Duration 23 | . . . . . . . . . . . 23 Martial Activations . | . . . . . . . . . . . . Shielding Activations . | . . . . . . . . . . . . Robots Disrupted . | . . . . . . . . . . . . Combat Hostiles . | . . . . . . . . . . . . Robots Corrupted 2 | . . . . . . . . . . . 2 Combat Hostiles . | . . . . . . . . . . . . Parts Fried 4 | . . . . . . . . . . . 4 Impact Corruptions 2 | . . . . . . . . . . . 2 Robots Melted 13 | . . 2 1 . . 3 1 1 1 1 3 Combat Hostiles 12 | . . 2 1 . . 2 1 1 1 1 3 Parts Melted 100 | 3 2 14 10 1 . 7 9 1 7 6 40 Heat Transferred 32344 | 555 1110 5291 3626 222 . 1702 4976 1090 1277 2271 10224 Parts Sabotaged . | . . . . . . . . . . . . Parts Stolen . | . . . . . . . . . . . . Parts Stripped . | . . . . . . . . . . . . Power Chain Reactions . | . . . . . . . . . . . . Alert | -11 -10 -9 -9 -9 -9 -6 -6 -6 -6 -6 -5 ------- Run | Yrd Mat Mat Sto Rec Scr Fac Ext Cet Arc Hub Fac Maximum Alert Level 4 | . . 1 2 . . . 3 2 1 4 3 Low Security (%) 64 | 100 100 77 40 100 . 100 64 . 4 24 50 Level 1 16 | . . 22 38 . . . 14 2 95 11 21 Level 2 12 | . . . 21 . . . 10 97 . 10 17 Level 3 6 | . . . . . . . 11 . . 49 9 Level 4 . | . . . . . . . . . . 4 . Level 5 . | . . . . . . . . . . . . High Security . | . . . . . . . . . . . . Max Security . | . . . . . . . . . . . . Peak Influence 1109 | 10 128 319 464 175 . 120 956 571 339 1109 822 Initial 529 | . . 5 122 175 . . 4 529 197 104 517 Average 214 | 1 39 128 275 57 . 34 203 501 303 647 280 Influence Increases 8365 | 25 349 1039 852 190 . 284 1652 326 242 1418 1988 Destroy 0b10 Robot/C 3860 | . 240 600 420 40 . 160 820 160 80 440 900 Destroy 0b10 Robot/NC 450 | 25 25 90 60 . . 20 50 10 20 45 105 Destroy Leader 902 | . 58 188 172 . . 64 94 . . 104 222 Allied During Kill 1348 | . . . 5 14 . 5 564 139 100 521 . Successful Hack 283 | . 26 83 30 16 . 14 24 7 . 12 71 Select Force Hacks 120 | . . . . 120 . . . . . . . Disable Machine 570 | . . 45 135 . . 15 30 . 30 165 150 Destroy Structure 502 | . . 3 15 . . 6 25 10 12 101 330 Partial Spotted 60 | . . . 15 . . . . . . 15 30 Lose Combat Pursuer 270 | . . 30 . . . . 45 . . 15 180 Influence Decreases 7552 | 25 336 761 691 611 31 274 715 780 436 661 2231 Entered New Map 1939 | . . 8 169 277 31 . 6 418 296 195 539 Time Decay 3893 | 25 326 583 522 294 . 254 449 262 100 356 722 Lost Part 470 | . 10 20 . . . . 40 40 . 10 350 Lost Ally 500 | . . . . 40 . 20 220 60 40 100 20 Purge Threat 750 | . . 150 . . . . . . . . 600 Squads Dispatched 45 | . 1 3 3 . . 6 5 . . 9 18 Investigation 9 | . 1 . 2 . . . 1 . . 1 4 Extermination 11 | . . . . . . 3 . . . 2 6 Reinforcement 20 | . . 3 1 . . 3 3 . . 3 7 Assault 5 | . . . . . . . 1 . . 3 1 Garrison . | . . . . . . . . . . . . Intercept . | . . . . . . . . . . . . Searches Triggered . | . . . . . . . . . . . . Construction Impeded 8 | . . . . . . 1 2 . . 1 4 Haulers Reinforced 3 | . . . . . . 1 . . . 1 1 Active Scanning Responses . | . . . . . . . . . . . . Cargo Convoy Interrupts 1 | . . . . . . . . . . . 1 Stealth | -11 -10 -9 -9 -9 -9 -6 -6 -6 -6 -6 -5 --------- Run | Yrd Mat Mat Sto Rec Scr Fac Ext Cet Arc Hub Fac Distress Signals 15 | . . 5 3 . . 1 . 1 . 2 3 Communications Jammed 1 | . . . . . . . . . . . 1 Distress Signals 1 | . . . . . . . . . . . 1 Times Spotted 290 | . 19 53 31 2 . 12 48 10 15 25 75 Peak Tracking Total 9 | . 4 5 4 2 . 3 8 5 2 4 9 Tactical Retreats 14 | . . 1 . . . . 3 . . 1 9 Traps | -11 -10 -9 -9 -9 -9 -6 -6 -6 -6 -6 -5 ------- Run | Yrd Mat Mat Sto Rec Scr Fac Ext Cet Arc Hub Fac Traps Triggered 10 | . 4 . . . . . . . . . 6 Indirectly . | . . . . . . . . . . . . Trap Hack Attempts 3 | . . . . . . . . . . . 3 Triggered . | . . . . . . . . . . . . Disarmed 2 | . . . . . . . . . . . 2 Reprogrammed . | . . . . . . . . . . . . Reused . | . . . . . . . . . . . . Traps Extracted . | . . . . . . . . . . . . Installed . | . . . . . . . . . . . . Triggered . | . . . . . . . . . . . . Machines | -11 -10 -9 -9 -9 -9 -6 -6 -6 -6 -6 -5 ---------- Run | Yrd Mat Mat Sto Rec Scr Fac Ext Cet Arc Hub Fac Machines Disabled 39 | . . 3 9 . . 1 3 . 2 11 10 Max in Single Turn 5 | . . 1 2 . . 1 1 . 1 5 2 Garrison Access 2 | . . . 1 . . . . . . . 1 Network Hub 1 | . . . . . . . . . . 1 . Machines Repaired . | . . . . . . . . . . . . Machines Dismantled . | . . . . . . . . . . . . Machines Sabotaged . | . . . . . . . . . . . . Overloaded Fab Kills . | . . . . . . . . . . . . Hacking | -11 -10 -9 -9 -9 -9 -6 -6 -6 -6 -6 -5 --------- Run | Yrd Mat Mat Sto Rec Scr Fac Ext Cet Arc Hub Fac Machines Accessed 72 | . 7 10 15 9 6 3 6 1 . 3 12 Terminals 46 | . 7 8 11 5 . 1 6 1 . 3 4 Fabricators 2 | . . . . . . . . . . . 2 Repair Stations 3 | . . . 2 . . . . . . . 1 Recycling Units 8 | . . 1 1 4 . 1 . . . . 1 Scanalyzers 4 | . . 1 . . . . . . . . 3 Garrison Access 3 | . . . 1 . . 1 . . . . 1 Total Hacks 171 | . 16 29 28 14 16 5 9 4 . 7 43 Successful 102 | . 9 20 18 11 16 2 4 1 . 3 18 Failed 68 | . 6 9 10 3 . 3 5 3 . 4 25 Catastrophic 14 | . . 1 4 . . 1 2 . . 1 5 Database Lockouts 1 | . 1 . . . . . . . . . . Manual 46 | . 4 18 7 5 . 2 . 1 . 4 5 Terminals 109 | . 16 26 17 9 . 2 9 4 . 7 19 Fabricators 7 | . . . . . . . . . . . 7 Repair Stations 10 | . . . 8 . . . . . . . 2 Recycling Units 12 | . . 1 1 5 . 1 . . . . 4 Scanalyzers 12 | . . 2 . . . . . . . . 10 Garrison Access 5 | . . . 2 . . 2 . . . . 1 Terminal Hacks 65 | . 8 13 10 5 16 . 4 1 . 2 6 Record 9 | . . . . . 9 . . . . . . Part Schematic 1 | . . . . . . . . . . . 1 Robot Analysis 13 | . 1 4 . 2 6 . . . . . . Prototype ID Bank 7 | . 2 2 1 2 . . . . . . . Open Door 10 | . . . 5 . . . 4 1 . . . Level Access Points 1 | . . 1 . . . . . . . . . Branch Access Points 3 | . 1 1 . 1 . . . . . . . Emergency Access Points 1 | . . 1 . . . . . . . . . Alert Level 6 | . 1 . 2 . . . . . . 2 1 Unreport Threat 5 | . . 1 . . . . . . . . 4 Locate Traps 5 | . 2 2 1 . . . . . . . . Hauler Manifests 1 | . . 1 . . . . . . . . . Zone Layout 2 | . 1 . 1 . . . . . . . . Proto ID Catalog 1 | . . . . . 1 . . . . . . Fabricator Hacks 5 | . . . . . . . . . . . 5 Network Status 1 | . . . . . . . . . . . 1 Load Schematic 2 | . . . . . . . . . . . 2 Build 2 | . . . . . . . . . . . 2 Repair Station Hacks 8 | . . . 6 . . . . . . . 2 Scan Component 4 | . . . 3 . . . . . . . 1 Repair 4 | . . . 3 . . . . . . . 1 Recycling Unit Hacks 5 | . . 1 1 1 . 1 . . . . 1 Report Inventory 5 | . . 1 1 1 . 1 . . . . 1 Scanalyzer 5 | . . 2 . . . . . . . . 3 Insert Component 3 | . . 1 . . . . . . . . 2 Analyze 2 | . . 1 . . . . . . . . 1 Garrison Access Hacks 2 | . . . 1 . . . . . . . 1 Seal Access 2 | . . . 1 . . . . . . . 1 Unauthorized Hacks 12 | . 1 4 . 5 . 1 . . . 1 . Terminals 8 | . 1 4 . 1 . 1 . . . 1 . Track 1 | . . 1 . . . . . . . . . Assimilate 1 | . . 1 . . . . . . . . . Botnet 5 | . 1 2 . . . 1 . . . 1 . Search 1 | . . . . 1 . . . . . . . Fabricators . | . . . . . . . . . . . . Repair Stations . | . . . . . . . . . . . . Recycling Units 4 | . . . . 4 . . . . . . . Tunnel 4 | . . . . 4 . . . . . . . Scanalyzers . | . . . . . . . . . . . . Garrison Access . | . . . . . . . . . . . . Data Cores Recovered 2 | . . 1 1 . . . . . . . . Used 1 | . . . 1 . . . . . . . . Hacking Detections 48 | . 7 6 10 4 . 2 4 2 . 3 10 Full Trace Events 8 | . . . 2 . . . 1 . . 1 4 Feedback Events 1 | . . . 1 . . . . . . . . Corruption 1 | . . . 1 . . . . . . . . Feedback Blocked . | . . . . . . . . . . . . Robot Schematics Acquired . | . . . . . . . . . . . . Robots Built . | . . . . . . . . . . . . Authchips . | . . . . . . . . . . . . Time . | . . . . . . . . . . . . Total Robot Build Rating . | . . . . . . . . . . . . Part Schematics Acquired 3 | . . 1 . . . . . . . . 2 Parts Built 2 | . . . . . . . . . . . 2 Authchips . | . . . . . . . . . . . . Time 170 | . . . . . . . . . . . 170 Total Part Build Rating 16 | . . . . . . . . . . . 16 Parts Repaired 4 | . . . 3 . . . . . . . 1 Time 210 | . . . 102 . . . . . . . 108 Parts Recycled . | . . . . . . . . . . . . Recycled Matter . | . . . . . . . . . . . . Retrieved Matter . | . . . . . . . . . . . . Retrieved Components . | . . . . . . . . . . . . Parts Scanalyzed 2 | . . 1 . . . . . . . . 1 Part Schematics Acquired 2 | . . 1 . . . . . . . . 1 Parts Damaged 1 | . . . . . . . . . . . 1 Bothacking | -11 -10 -9 -9 -9 -9 -6 -6 -6 -6 -6 -5 ------------ Run | Yrd Mat Mat Sto Rec Scr Fac Ext Cet Arc Hub Fac Used RIF Installer . | . . . . . . . . . . . . Robots Hacked . | . . . . . . . . . . . . Non-combat . | . . . . . . . . . . . . Combat . | . . . . . . . . . . . . Robot Hacks Applied . | . . . . . . . . . . . . Relay Couplers Released . | . . . . . . . . . . . . Fabnet Peak Effective % . | . . . . . . . . . . . . Robots Rewired 16 | . . . . . . . 16 . . . . Allies Hacked . | . . . . . . . . . . . . Hacks Repelled . | . . . . . . . . . . . . Allies | -11 -10 -9 -9 -9 -9 -6 -6 -6 -6 -6 -5 -------- Run | Yrd Mat Mat Sto Rec Scr Fac Ext Cet Arc Hub Fac Total Allies 36 | . . . 10 . . . 21 5 . . . Largest Group 16 | . . . 10 9 6 6 16 11 10 7 1 Highest-Rated Group 763 | . . . 88 80 56 56 620 763 601 534 89 Highest-Rated Ally 159 | . . . 16 16 16 16 159 159 96 96 89 Total Orders . | . . . . . . . . . . . . Ally Attacks 296 | . . . 1 7 . 13 145 60 9 61 . Total Damage 7838 | . . . 11 69 . 90 3334 1647 273 2414 . Kills 51 | . . . . 1 . . 21 7 2 20 . Allies Corrupted . | . . . . . . . . . . . . Allies Melted . | . . . . . . . . . . . . Intel | -11 -10 -9 -9 -9 -9 -6 -6 -6 -6 -6 -5 ------- Run | Yrd Mat Mat Sto Rec Scr Fac Ext Cet Arc Hub Fac Active Infowar (turns) 9869 | 9 1227 719 56 . . 1437 1824 564 203 817 3013 Optics 7451 | . . . . . . 1273 1824 564 203 817 2770 Sensors 3912 | . . . . . . 1393 54 . . . 2465 Seismic 2011 | 9 1227 719 56 . . . . . . . . Jamming 28 | . . . . . . . . . . . 28 Robot Analysis Total 13 | . 1 4 . 2 6 . . . . . . Derelict Logs Recovered . | . . . . . . . . . . . . Drone Launches . | . . . . . . . . . . . . Drone Recoveries . | . . . . . . . . . . . . Exploration | -11 -10 -9 -9 -9 -9 -6 -6 -6 -6 -6 -5 ------------- Run | Yrd Mat Mat Sto Rec Scr Fac Ext Cet Arc Hub Fac Turns Passed 16116 | 139 1329 2136 1457 830 1958 1439 1824 564 203 817 3420 Spaces Moved 7784 | 52 690 1053 630 477 1148 643 831 226 74 364 1596 Core 34 | 14 . . . . . . . . . . 20 Treads 7631 | 38 690 1053 630 477 1148 643 831 226 74 364 1457 Legs . | . . . . . . . . . . . . Wheels . | . . . . . . . . . . . . Hover 119 | . . . . . . . . . . . 119 Flight . | . . . . . . . . . . . . Fastest Speed 50 | 50 160 160 170 170 170 167 167 166 166 166 50 Average Speed 163 | 150 160 161 170 170 170 169 167 170 166 166 153 Slowest Speed 250 | 200 240 170 170 170 170 170 167 250 166 166 166 Overloaded Moves . | . . . . . . . . . . . . Propulsion Burnouts . | . . . . . . . . . . . . Robots Hopped . | . . . . . . . . . . . . Potential Cave-ins . | . . . . . . . . . . . . Cave-ins Triggered 1 | . . . . . . . . . . . 1 Exploration Rate (%) 68 | 5 94 99 94 95 88 14 88 85 82 35 48 Regions Visited 11 Branch Regions 7 Pre-discovered Areas 4 | . . . . 4 . . . . . . . Known Exits Taken 1 | . . 1 . . . . . . . . . Unknown Exits Taken 10 | 1 1 . 1 1 1 1 1 1 1 1 . Scrap Searched 8 | . . . . . 8 . . . . . . Spaces Dug 17 | . . . . . . . . . . . 17 Terrain Destroyed 398 | . . . 12 . . 4 13 5 11 168 185 Melee . | . . . . . . . . . . . . Projectile 167 | . . . 12 . . 4 13 5 11 13 109 AOE 231 | . . . . . . . . . . 155 76 Terrain Rammed . | . . . . . . . . . . . . Walls Destroyed . | . . . . . . . . . . . . Machines Disabled . | . . . . . . . . . . . . Actions | -11 -10 -9 -9 -9 -9 -6 -6 -6 -6 -6 -5 --------- Run | Yrd Mat Mat Sto Rec Scr Fac Ext Cet Arc Hub Fac Total 10000 | 82 803 1298 870 489 1156 936 1132 379 119 518 2218 Wait 1157 | . 15 47 149 8 5 234 85 116 25 122 351 Move 7773 | 51 689 1052 629 476 1147 642 830 225 73 363 1596 Hop . | . . . . . . . . . . . . Pick Up 94 | 7 16 22 2 . 2 9 1 5 2 2 26 Fast Attach 32 | 5 4 1 3 . . 3 3 1 . 1 11 Attach 38 | 2 2 3 . . . 4 1 3 . 1 22 Detach 5 | . . . . . . . . 1 . . 4 Swap 74 | . 6 23 7 . . 6 8 6 . 1 17 Drop 91 | 1 6 35 4 . 2 10 6 9 2 2 14 Fire 566 | 16 64 106 71 3 . 27 61 13 17 26 162 Melee . | . . . . . . . . . . . . Ram 5 | . . . . . . . . . . . 5 Kick . | . . . . . . . . . . . . Crush 30 | . 1 9 5 2 . 1 5 . . . 7 Escape Stasis . | . . . . . . . . . . . . Rewire 132 | . . . . . . . 132 . . . . Trap 3 | . . . . . . . . . . . 3 Miscellaneous . | . . . . . . . . . . . . Route ------- -11/Scrapyard -10/Materials (discovered 5 exits: *Mat x3 / *Min x2) -9/Materials (discovered 7 exits: *Mat x3 / *Min x2 / *Sto x2) -9/Storage (discovered 2 exits: *Mat / *Rec) -9/Recycling (discovered 2 exits: [*Fac] / *Scr) -9/Scraptown (discovered 2 exits: *Fac x2) -6/Factory (discovered 2 exits: [*Low] / *Ext) -6/Extension (discovered 3 exits: *Fac x2 / *Cet) -6/Cetus (discovered 2 exits: *Fac / [*Arc]) -6/Archives (discovered 2 exits: *Hub x2) -6/Hub_04(d) -5/Factory (discovered 1 exit: [*Upp]) History --------- Turn | Location | Event 20 | -11/Scrapyard | Discovered new exit (range 16) 140 | -11/Scrapyard | Entered Materials 148 | -10/Materials | Central database locked down 304 | -10/Materials | Build established: Mutant 326 | -10/Materials | Discovered new exit (range 13) 432 | -10/Materials | Identified exit to Mines 998 | -10/Materials | Discovered new exit (range 16) 1185 | -10/Materials | Core integrity fell below 50% 1236 | -10/Materials | Discovered new exit (range 12) 1469 | -10/Materials | Entered another Materials area 1469 | -9/Materials | Evolved 2 slots: Propulsion x1, Utility x1 1607 | -9/Materials | Discovered new exit (range 5) 1629 | -9/Materials | Discovered new exit (range 16) 2070 | -9/Materials | Discovered new exit (range 8) 2212 | -9/Materials | Build established: Scavenger-Mutant 2517 | -9/Materials | Discovered new exit (range 13) 2530 | -9/Materials | Discovered new exit (range 10) 2774 | -9/Materials | Discovered new exit (range 8) 3176 | -9/Materials | Identified exit to Materials 3176 | -9/Materials | Identified exit to Mines 3176 | -9/Materials | Identified exit to Storage 3215 | -9/Materials | Build established: Mutant 3605 | -9/Materials | Entered Storage 4057 | -9/Storage | Repaired Shield Generator 4100 | -9/Storage | Repaired Cooling System 4197 | -9/Storage | Core integrity fell below 50% 4619 | -9/Storage | Repaired Arm. Treads 4670 | -9/Storage | Discovered exit to Materials (range 15) 4926 | -9/Storage | Assisted by bots powering up and referring to "LRC-V3" 5034 | -9/Storage | Used back door to open Recycling access 5034 | -9/Storage | Discovered new exit (range 4) 5062 | -9/Storage | Entered Recycling 5062 | -9/Recycling | Accompanied by 9 allies 5063 | -9/Recycling | Met a Zionite searching for Scraptown 5226 | -9/Recycling | Build established: Commander-Mutant 5388 | -9/Recycling | Lost 3 allies 5811 | -9/Recycling | Discovered new exit (range 15) 5842 | -9/Recycling | Scanned before Scraplab entrance 5865 | -9/Recycling | Entered Scraplab 5879 | -9/Recycling | Discovered new exit (range 3) 5892 | -9/Recycling | Entered Scraptown 5892 | -9/Scraptown | Accompanied by 6 allies 5892 | -9/Scraptown | System corruption cleaned by C-Scrubber 5971 | -9/Scraptown | Heard Great Nut preacher, LISTEN AND RECITE! 6066 | -9/Scraptown | Visited Bundlers 6144 | -9/Scraptown | Visited Cyclists 6170 | -9/Scraptown | Visited Shadow of the Wyrm 6209 | -9/Scraptown | Visited CPS Storage 6236 | -9/Scraptown | Visited Cave Peace 6324 | -9/Scraptown | Received an X-ray algorithm 6355 | -9/Scraptown | Discovered new exit (range 11) 6892 | -9/Scraptown | Visited UFD Registry 6892 | -9/Scraptown | Registered with UFD as "Kinetitail" 6928 | -9/Scraptown | Visited Supply Room 6972 | -9/Scraptown | Visited Analyses Database 7011 | -9/Scraptown | Visited Science Testing Area 7055 | -9/Scraptown | Visited Infowarlord's Domain 7069 | -9/Scraptown | Found Exp. Sensor Array 7104 | -9/Scraptown | Visited Junk Repository 7385 | -9/Scraptown | Visited Curators Association 7407 | -9/Scraptown | Visited Observation Area 7471 | -9/Scraptown | Visited Derelict Rescue Squad 7519 | -9/Scraptown | Visited Botcube Research 7560 | -9/Scraptown | Visited Science Guys 7720 | -9/Scraptown | Met Optimus 7720 | -9/Scraptown | Accepted into 0bPrime 7835 | -9/Scraptown | Discovered new exit (range 5) 7850 | -9/Scraptown | Entered Factory 7850 | -6/Factory | Accompanied by 6 allies 7850 | -6/Factory | Evolved 6 slots: Power x1, Propulsion x1, Utility x3, Weapon x1 8207 | -6/Factory | Discovered new exit (range 16) 8236 | -6/Factory | Lost 5 allies 8482 | -6/Factory | Discovered new exit (range 12) 8493 | -6/Factory | Build established: Skirmisher 9289 | -6/Factory | Entered Extension 9644 | -6/Extension | Build established: Scavenger-Tank 10132 | -6/Extension | Rescued A7 10267 | -6/Extension | Build established: Commander-Tank 10380 | -6/Extension | Spotted B-75 Beast 10383 | -6/Extension | Spotted B-75 Beast 10404 | -6/Extension | Destroyed B-75 Beast 10417 | -6/Extension | Allies destroyed B-75 Beast 10440 | -6/Extension | Lost 4 allies 10480 | -6/Extension | Discovered new exit (range 3) 10573 | -6/Extension | Rescued a captive Derelict 10574 | -6/Extension | Rescued a captive Derelict 10691 | -6/Extension | Rescued a captive Derelict 10692 | -6/Extension | Rescued a captive Derelict 10714 | -6/Extension | Disrupted transfer network 11000 | -6/Extension | Discovered new exit (range 10) 11002 | -6/Extension | Discovered new exit (range 6) 11039 | -6/Extension | First assault squad dispatched 11044 | -6/Extension | Disrupted transfer network 11082 | -6/Extension | Lost 7 allies 11113 | -6/Extension | Entered Cetus 11113 | -6/Cetus | Accompanied by 9 allies (A7) 11118 | -6/Cetus | Acquired a Cetus Manufacturing Module code from A7 11135 | -6/Cetus | Spotted Cetus Guard 11135 | -6/Cetus | Spotted Cetus Guard 11135 | -6/Cetus | Spotted Cetus Guard 11135 | -6/Cetus | Spotted Cetus Guard 11146 | -6/Cetus | Destroyed Cetus Guard 11154 | -6/Cetus | Allies destroyed Cetus Guard 11155 | -6/Cetus | Destroyed Cetus Guard 11166 | -6/Cetus | Allies destroyed Cetus Guard 11184 | -6/Cetus | Lost 3 allies 11194 | -6/Cetus | Lost 4 parts (2n2w) 11280 | -6/Cetus | Started Cetus Manufacturing Module 11291 | -6/Cetus | Escorted A7 to Cetus Mainframe 11305 | -6/Cetus | Manufactured an Enhanced Grunt 11330 | -6/Cetus | Manufactured an Enhanced Grunt 11355 | -6/Cetus | Manufactured an Enhanced Grunt 11380 | -6/Cetus | Manufactured an Enhanced Grunt 11405 | -6/Cetus | Manufactured an Enhanced Grunt 11458 | -6/Cetus | Discovered new exit (range 21) 11493 | -6/Cetus | Spotted Cetus Guard 11494 | -6/Cetus | Spotted Cetus Guard 11495 | -6/Cetus | Spotted Cetus Guard 11495 | -6/Cetus | Spotted Cetus Guard 11498 | -6/Cetus | Extracted ID and sensor layout for unrecognized location from A7's data core 11498 | -6/Cetus | Discovered new exit (range 21) 11509 | -6/Cetus | Allies destroyed Cetus Guard 11524 | -6/Cetus | Destroyed Cetus Guard 11555 | -6/Cetus | Met Revision 17 11677 | -6/Cetus | Entered Archives 11677 | -6/Archives | Accompanied by 10 allies 11717 | -6/Archives | Discovered new exit (range 22) 11805 | -6/Archives | Discovered new exit (range 22) 11880 | -6/Archives | Entered Hub_04(d) 11880 | -6/Hub_04(d) | Accompanied by 7 allies 12230 | -6/Hub_04(d) | First assault squad dispatched 12245 | -6/Hub_04(d) | Discovered new exit (range 5) 12354 | -6/Hub_04(d) | Build established: Scavenger-Tank 12434 | -6/Hub_04(d) | Network Hub disabled 12697 | -6/Hub_04(d) | Entered Factory 12697 | -5/Factory | Accompanied by 1 ally 12697 | -5/Factory | Evolved 2 slots: Utility x2 13655 | -5/Factory | Repaired Centrium Heavy Treads 13768 | -5/Factory | Discovered new exit (range 6) 14455 | -5/Factory | System corruption reached 10% 14647 | -5/Factory | Lost 4 parts (2p1u1w) 15467 | -5/Factory | Crushed by falling debris 15484 | -5/Factory | Fabricated Centrium Heavy Treads (x1) 15544 | -5/Factory | Cargo convoy interrupted 15670 | -5/Factory | Fabricated Centrium Heavy Treads? 15997 | -5/Factory | First assault squad dispatched 16009 | -5/Factory | Core integrity fell below 50% 16037 | -5/Factory | Core integrity fell below 20% 16065 | -5/Factory | Lost 17 parts (2p3n5u7w) 16117 | -5/Factory | Destroyed by Y-64 Sentinel with KE Penetrator Last Messages --------------- Flexi-carbon Leg (49%) Flexi-carbon Leg (52%) Hvy. Assault Rifle (64%) 16062_ ALERT: Suspicious activity at Recycling Unit F005. Dispatching Investigation squad. 16063_ Slammed into R-10 Processor. 16063_ R-10 Processor knocked back. 16068_ Penetrated by Slug. 16082_ K-01 Serf cleans the Construction Platform. 16083_ System corrupted: Heat flow error (+151). 16084_ Slammed into K-01 Serf. 16084_ Destabilizing: System interference. 16084_ Imp. Target Analyzer temporarily disabled. 16085_ Slammed into K-01 Serf. 16095_ Slammed into U-05 Engineer. 16101_ System corrupted: Energy discharge (-22). 16101_ Acquired 12 matter. 16117_ Penetrated by Slug. Map ----- +----------------------------------------------------+ | ! #???# #???????? | | ######### #### ##########???#"" """ #???????? | | # # ## #%##???????????#"" """ #???????? | | # """ # ##%# #????????????#"" """ #???????? | | # """ + ####+##########???#"Y #???????? | | # """ # # % ##???#"" """ #???????? | | # "" # # ##???#"" """ #???????? | | # "" # # ##?????" """ ######### | | # # # ##??????? # | | # """ # # # #########+### | | # """ # # = ### | | # """ # + " # # ] " | | # "" # # # # """ """ T | | # "" # # ! ### """ """ ^ | | # # # / """ """ ^ | | # # # ### """ """ # | | # # # ### # | | # [ # ##############?# """ """ /######### | | # # #??????????????# """ """ # # | | ######### #??????????????# """ """ #""" # | | ????????# #??????????????#[ """ """ #""" # | | ????????# #??????????????# #""" ?? | | ######### #??????????????# """ """ # ???? | | =! # ################ """ """ ##+####?? | | == "" # ^ """ """ #?? | | ! T / @ """ """ #?? | | " # ### | | [ # % ^ | | + % ######## ###### | | ###########+########## #########+#######??# #?# | | ?##?????? ??????## #??# #??# #?# " | | ??????? " " ????# #??# #??# #?#= " | | ?????# " " [! " ??#T ####[ #??# #?# " | | ?????# " " [! " #?## %+! #??# #?# " | | ?????# " " ! " #??# #### """ !! #??# #?# " | | ###### " " " #??# #??# """"" !! #??# #?# " | | + " " " #??# #??# """"" #??# #?# | | ###### " " = " #??# #??# #??? ??# | | #????# " " " #??# #??# #??? ??# "" | | #????# " " " #??# #??# #??? ??# "" | | #????#?? #??# #??# ""Y"" #??? ??# "S | | #??????? ? #??# #??# """"" #??? ??# "" | | #?????????#########??# #??##### #####?????? ??# " | | ##############???????# #???????##??????????+??# | | # #???????# #?????????????????????##### | | # #???????# #?????????????????????# | | # #???????# #???????????????? """ # | | # #???????# #???????????????" """ + | | # #???????# #???????????????" """ # | | # #???????# #?????????????? ???# | +----------------------------------------------------+ Best States ------------- Heat Dissipation 109 Coolant Potential 50 Energy Generation 43 Energy Capacity 420 Matter Stores 300 Matter Capacity 300 Sight Range 22 Robot Scan Range 20 Terrain Scan Density 10 Jamming Range 12 Power Amplification 20 Armor Coverage 225 Core Shielding 20 Evasion (%) 53 Target Analysis 6 Core Analysis 6 Recoil Reduction 4 Particle Charging 20 Offensive Hacking 14 Item Schematics ----------------- Adv. Beam Cannon | -9/Materials | Scanalyzed Centrium Heavy Treads | -5/Factory | Scanalyzed Hcp. Storage Unit | -5/Factory | Hacked Robot Schematics ------------------ None Fabricated ------------ Centrium Heavy Treads | x1 | -5/Factory Centrium Heavy Treads | x1 | -5/Factory Repaired ---------- Shield Generator | 23% | -9/Storage Cooling System | 44% | -9/Storage Arm. Treads | 55% | -9/Storage Centrium Heavy Treads | 19% | -5/Factory Alien Tech Used ----------------- None Achievements -------------- Cannon Specialist Challenges ------------ None Game ------ Seed PropulsionScanArticulator Manual? 0 Play Time 01:45:57 Cumulative 200.3 hours Start 2025.10.07 @ 08:53:24 End 2025.10.07 @ 16:32:49 Sessions 3 Manual Loads 0 Difficulty Rogue Special Mode None Game No. 250 Rogue 250 Adventurer 0 Explorer 0 Win Type - Total 3 Types 3/0/0/0/0/0/0/0/0/0 Lore% 71 Gallery% 56 Achievement% 55 Wizard Run 0 Options --------- Layout 1 ASCII 0 Keyboard 1 Movement Numpad Keybinds 0 Fullscreen 2 Font 24/Smallcaps Map View 50x35 Zoom Use 0% Tactical HUD 1 Map Filters NONE Filters NONE Steam 1 RUN: 90d4c402-04a6-4632-ac11-29f472e058f3